Workbook

Sheet VIGILANTE
B3: PLANILHA DE CUSTOS E FORMAÇÃO DE PREÇOS
B4: Nº do Processo 59504.000289/2021-71-e
B6: Categoria profissional: Vigilante
B8: Discriminação dos Serviços
B9: A | C9: Data de apresentação da proposta
B10: B | C10: Município | I10: Anápolis-GO
B11: C | C11: Ano do Acordo, Convenção ou Dissídio Coletivo | I11: 2022
B12: D | C12: Nº de meses de execução contratual | I12: 12
B14: Identificação do Serviço
B15: Tipo de Serviço | D15: Unidade de Medida | F15: Quantidade total a contratar (em função da unidade de medida)
B16: Prestação de serviços continuados por empresa especializada em vigilância armada noturna, a ser executada nas dependências do pátio do Sindicato Rural de Anápolis, localizado no Parque de Exposição Agropecuário de Anápolis, estado de Goiás. | D16: Posto | F16: 1
B18: Dados para composição dos custos referentes à mão-de-obra
B19: 1 | C19: Tipo de serviço (mesmo serviço com características distintas) | I19: Vigilância Patrimonial
B20: 2 | C20: Classificação Brasileira de Ocupações (CBO) | I20: 5173-30
B21: 3 | C21: Salário Nominativo da Categoria Profissional | I21: 1690
B22: 4 | C22: Categoria profissional (vinculada à execução contratual) | I22: Vigilante
B23: 5 | C23: Data base da categoria (dia/mês/ano) | I23: 2022-01-01
B25: MÓDULO 1 - COMPOSIÇÃO DA REMUNERAÇÃO
B26: 1 | C26: COMPOSIÇÃO DA REMUNERAÇÃO | I26: % | J26: VALOR (R$)
B27: A | C27: Salário Base (Parágrafo 1º, CCT 2022/2023) | J27: 1690
B28: B | C28: Adicional Periculosidade (Parágrafo 1º, CCT 2022/2023) | I28: 0.3 | J28: =J27*0.3 -> 507
B29: C | C29: Adicional Insalubridade | J29: 0
B30: D | C30: Adicional Noturno | I30: 0.2 | J30: =L34 -> 212.5098182 | L30: =SUM(J27+J28)/220 -> 9.986363636 | M30: hora diurna
B31: E | C31: Adicional de Hora Noturna Reduzida (Hora fixada em 60m, conforme CCT 2022/2023) | J31: 0 | L31: =L30*1.2 -> 11.98363636 | M31: hora noturna | O31: =L31-L30 -> 1.997272727
B32: F | C32: Outros - Intervalo Intrajornada Indenizado | J32: 113.89 | L32: 7 | M32: 22 às 07h
B33: TOTAL DO MÓDULO 1 | J33: =SUM(J27:J32) -> 2523.399818 | L33: 15.2 | M33: dias/mês
L34: =L32*L33*O31 -> 212.5098182
B35: MÓDULO 2 – ENCARGOS E BENEFÍCIOS ANUAIS, MENSAIS E DIÁRIOS
B36: Submódulo 2.1 - 13º Salário, Férias e Adicional de Férias | I36: % | J36: VALOR (R$)
B37: A | C37: 13 (Décimo-terceiro) salário (Percentual obrigatório conforme Anexo XII - IN 5/17) | I37: 0.083333 | J37: =J33*8.33% -> 210.1992049 | L37: 9.99 | M37: hora diurna
B38: B | C38: Adicional de Férias (Percentual obrigatório conforme Anexo XII - IN 5/17) | I38: 0.0278 | J38: =J33*2.78% -> 70.15051495 | L38: =L37*1.5 -> 14.985 | M38: hora + 50%
B39: TOTAL SUBMÓDULO 2.1 | I39: =SUM(I37:I38) -> 0.111133 | J39: =SUM(J37:J38) -> 280.3497198 | L39: =L38/2 -> 7.4925 | M39: 30 min
L40: 15.2 | M40: dias/mês
B41: Submódulo 2.2 - GPS, FGTS e Outras Contribuições | I41: % | J41: VALOR (R$) | L41: =L39*L40 -> 113.886
B42: A | C42: INSS | I42: 0.2 | J42: =TRUNC(($J$33+$J$39)*$I$42,2) -> 560.74
B43: B | C43: Salário Educação | I43: 0.025 | J43: =TRUNC(($J$33+$J$39)*$I$43,2) -> 70.09
B44: C | C44: SAT (Seguro Acidente de Trabalho) | I44: 0.03 | J44: =TRUNC(($J$33+$J$39)*$I$44,2) -> 84.11 | P44: ~
B45: D | C45: SESC ou SESI | I45: 0.015 | J45: =TRUNC(($J$33+$J$39)*$I$45,2) -> 42.05
B46: E | C46: SENAI - SENAC | I46: 0.01 | J46: =TRUNC(($J$33+$J$39)*$I$46,2) -> 28.03
B47: F | C47: SEBRAE | I47: 0.006 | J47: =TRUNC(($J$33+$J$39)*$I$47,2) -> 16.82
B48: G | C48: INCRA | I48: 0.002 | J48: =TRUNC(($J$33+$J$39)*$I$48,2) -> 5.6
B49: H | C49: FGTS | I49: 0.08 | J49: =TRUNC(($J$33+$J$39)*$I$49,2) -> 224.29
B50: TOTAL SUBMÓDULO 2.2 | I50: =SUM(I42:I49) -> 0.368 | J50: =SUM(J42:J49) -> 1031.73
B52: Submódulo 2.3 - Benefícios Mensais e Diários | J52: VALOR (R$)
B53: A | C53: Transporte (R$ 4,95 x 2 x 15 - 6% x SalBase) (Preços em 01/03/2022) | I53: 0.94 | J53: 49.08 | L53: =4.95*15.2*2 -> 150.48 | M53: =J27*6% -> 101.4
B54: B | C54: Auxílio-Refeição/Alimentação e Cesta Básica (Cláusula 9º, Parágrafo 2º, CCT 2022/2023) | I54: 0.95 | J54: =384*95% -> 364.8
B55: C | C55: Benefício Social Familiar e Benefício Natalidade (Parágrafo 1º, Cláusula 14º) | I55: - | J55: 7 | L55: =L53-L54 -> 150.48 | M55: =L55-M53 -> 49.08
B56: D | C56: Auxílio Saúde | I56: - | J56: 0
B57: E | C57: Seguro de Vida (Mongeral Aegon Seguros e Previdência S.A) Salário Base R$ 2.467,00 | I57: - | J57: =14.81-1 -> 13.81
B58: F | C58: Outros (Cesta Alimentícia - Dia Estadual do Vigilante - Cláusula 16º) | I58: 0.04 | J58: =J27*4% -> 67.6
B59: TOTAL SUBMÓDULO 2.3 | J59: =SUM(J53:J58) -> 502.29
B61: QUADRO-RESUMO DO MÓDULO 2 - ENCARGOS, BENEFÍCIOS ANUAIS, MENSAIS E DIÁRIOS
B62: Módulo 2 - Encargos, Benefícios Anuais, Mensais e Diários | J62: VALOR (R$)
B63: 2.1 | C63: 13º Salário e Adicional de Férias | J63: =J39 -> 280.3497198
B64: 2.2 | C64: GPS, FGTS e Outras Contribuições | J64: =J50 -> 1031.73
B65: 2.3 | C65: Benefícios Mensais e Diários | J65: =J59 -> 502.29
B66: TOTAL DO MÓDULO 2 | J66: =SUM(J63:J65) -> 1814.36972
B68: MÓDULO 3 – PROVISÃO PARA RESCISÃO
B69: 3 | C69: PROVISÃO PARA RESCISÃO | I69: % | J69: VALOR (R$)
B70: A | C70: Aviso Prévio Indenizado | I70: 0.0029 | J70: =TRUNC(I70*$J$33,2) -> 7.31
B71: B | C71: Incidência do FGTS sobre Aviso Prévio Indenizado | I71: =I49*I70 -> 0.000232 | J71: =TRUNC(I71*$J$33,2) -> 0.58
B72: C | C72: Aviso Prévio Trabalhado | I72: 0.0116 | J72: =TRUNC(I72*$J$33,2) -> 29.27
B73: D | C73: Incidência de GPS, FGTS e outras contribuições sobre o Aviso Prévio Trabalhado | I73: =I50*I72 -> 0.0042688 | J73: 10.77
B74: E | C74: Multa sobre FGTS e contribuição social sobre o aviso prévio indenizado e sobre o aviso prévio trabalhado (Conforme IN 005/2017) | I74: 0.05 | J74: =TRUNC(I74*$J$33,2) -> 126.16
B75: TOTAL DO MÓDULO 3 | I75: =SUM(I70:I74) -> 0.0690008 | J75: =SUM(J70:J74) -> 174.09
B77: MÓDULO 4 – CUSTO DE REPOSIÇÃO DO PROFISSIONAL AUSENTE
B78: Submódulo 4.1 - Substituto nas Ausências Legais | I78: % | J78: VALOR (R$)
B79: A | C79: Substituto na cobertura de Férias | I79: 0.0833 | J79: =TRUNC(($J$33)*I79,2) -> 210.19
B80: B | C80: Substituto na cobertura de Ausências Legais | I80: 0.0222 | J80: =TRUNC(($J$33)*I80,2) -> 56.01
B81: C | C81: Substituto na cobertura de Licença-Paternidade | I81: 0.0007 | J81: 1.76
B82: D | C82: Substituto na cobertura de Ausência por acidente de trabalho | I82: 0.0002 | J82: 0.5
B83: E | C83: Substituto na cobertura de Afastamento Maternidade | I83: 0.0004 | J83: 1
B84: F | C84: Substituto na cobertura de Outras ausências (especificar) | I84: 0 | J84: 0
B85: TOTAL SUBMÓDULO 4.1 | I85: =SUM(I79:I84) -> 0.1068 | J85: =SUM(J79:J84) -> 269.46
B87: Submódulo 4.2 - Intrajornada | I87: % | J87: VALOR (R$)
B88: A | C88: Substituto na cobertura de Intervalo para repouso ou alimentação | I88: 0 | J88: 0
B89: TOTAL SUBMÓDULO 4.2 | I89: 0 | J89: 0
B91: QUADRO-RESUMO DO MÓDULO 4 - CUSTO DE REPOSIÇÃO DO PROFISSIONAL AUSENTE
B92: Módulo 4 - Custo de Reposição do Profissional Ausente | J92: VALOR (R$)
B93: 4.1 | C93: Substituto nas Ausências Legais | J93: =J85 -> 269.46
B94: 4.2 | C94: Substituto na Intrajornada | J94: =J89 -> 0
B95: TOTAL DO MÓDULO 4 | J95: =SUM(J93:J94) -> 269.46
B97: MÓDULO 5 – INSUMOS DIVERSOS
B98: 5 | C98: INSUMOS DIVERSOS | J98: VALOR (R$)
B99: A | C99: Insumo dos Uniformes | J99: 51.55
B100: B | C100: Insumo de Materiais | J100: 259.19
B101: C | C101: Utensílios | I101: - | J101: 0
B102: D | C102: Outros (especificar) | I102: - | J102: 0
B103: TOTAL DO MÓDULO 5 | I103: - | J103: =SUM(J99:J102) -> 310.74
B105: MÓDULO 6 – CUSTOS INDIRETOS, TRIBUTOS E LUCRO
B106: 6 | C106: CUSTOS INDIRETOS, TRIBUTOS E LUCRO | I106: % | J106: VALOR (R$)
B107: A | C107: Custos Indiretos | I107: 0.0485 | J107: =TRUNC(((J131)*I107),2) -> 246.96
B108: B | C108: Lucro | I108: 0.0545 | J108: =TRUNC(((J131+J107)*I108),2) -> 290.97
B109: C | C109: TRIBUTOS
B110: C.1 | C110: PIS (Lucro Presumido) | I110: 0.0065 | J110: =TRUNC(I110*((J131+J107+J108)/(1-I115)),2) -> 40.06
B111: C.2 | C111: COFINS (Lucro Presumido) | I111: 0.03 | J111: =TRUNC(I111*(J131+J107+J108)/(1-I115),2) -> 184.89
B112: C.3 | C112: ISS | I112: 0.05 | J112: =TRUNC(I112*(J131+J107+J108)/(1-I115),2) -> 308.15
B113: TOTAL DO MÓDULO 6 | I113: =SUM(I107:I112) -> 0.1895 | J113: =SUM(J107:J112) -> 1071.03
B115: a) | C115: Tributos % = To = ............................................................. | I115: =I110+I111+I112 -> 0.0865
C116: 100
B118: b) | C118: (Total dos Módulos 1, 2, 3, 4 e 5+ Custos indiretos + lucro)= Po = ................................... | J118: =J33+J66+J75+J95+J103+J107+J108 -> 5629.989538
B120: c) | C120: Po / (1 - To) = P1 = .............................................................................. | J120: =TRUNC(J118/(1-I115),2) -> 6163.09
C122: Valor dos Tributos = P1 - Po | J122: =J120-J118 -> 533.100462
B124: QUADRO RESUMO DO CUSTO POR EMPREGADO
B125: Mão-de-Obra vinculada à execução contratual (valor por empregado) | J125: VALOR (R$)
B126: A | C126: MÓDULO 1 - COMPOSIÇÃO DA REMUNERAÇÃO | J126: =J33 -> 2523.399818
B127: B | C127: MÓDULO 2 – ENCARGOS E BENEFÍCIOS ANUAIS, MENSAIS E DIÁRIOS | J127: =J66 -> 1814.36972
B128: C | C128: MÓDULO 3 – PROVISÃO PARA RESCISÃO | J128: =J75 -> 174.09
B129: D | C129: MÓDULO 4 – CUSTO DE REPOSIÇÃO DO PROFISSIONAL AUSENTE | J129: =J95 -> 269.46
B130: E | C130: MÓDULO 5 – INSUMOS DIVERSOS | J130: =J103 -> 310.74
C131: Subtotal (A + B + C + D + E) | J131: =SUM(J126:J130) -> 5092.059538
B132: F | C132: MÓDULO 6 – CUSTOS INDIRETOS, TRIBUTOS E LUCRO | J132: =J113 -> 1071.03
B133: PREÇO TOTAL POR EMPREGADO | J133: =TRUNC(J131+J132,2) -> 6163.08

Sheet INSUMOS
A1: Cotações de Preços de Insumos
A2: Referência: Cotação de preços em AGOSTO/2022
B3: Materiais e equipamentos para os postos de vigilância armada: | C3: Cotação 1 | D3: Cotação 2 | E3: Cotação 3 | F3: Mediana (R$) | G3: Consumo anual | H3: Consumo Mensal | I3: Custo Mensal
A4: 1 | B4: Uniforme | I4: =SUM(I5:I10) -> 51.54916667
A5: 1.1 | B5: Camisa | C5: 50 | D5: 174.5 | E5: 45.9 | F5: =MEDIAN(C5:E5) -> 50 | G5: 2 | H5: =G5/12 -> 0.1666666667 | I5: =H5*F5 -> 8.333333333
A6: 1.2 | B6: Blusa de frio ou japona | C6: 99.79 | D6: 137.88 | E6: 134.23 | F6: 134.23 | G6: 1 | H6: 0.08333333333 | I6: 11.18583333
A7: 1.3 | B7: Calça | C7: 107.88 | D7: 57.9 | E7: 137.9 | F7: 107.88 | G7: 2 | H7: 0.1666666667 | I7: 17.98
A8: 1.4 | B8: Par de botas (coturnos) | C8: 62.61 | D8: 135.9 | E8: 99.9 | F8: 99.9 | G8: 1 | H8: 0.08333333333 | I8: 8.325
A9: 1.5 | B9: Boné / Quepe / Boina | C9: 34.9 | D9: 33.9 | E9: 49.19 | F9: 34.9 | G9: 1 | H9: 0.08333333333 | I9: 2.908333333
A10: 1.6 | B10: Par de meias | C10: 19.9 | D10: 14.9 | E10: 16.9 | F10: 16.9 | G10: 2 | H10: 0.1666666667 | I10: 2.816666667
A11: 2 | B11: Armas, materiais e equipamentos, inclusive de proteção individual (EPI): | H11: =G11/12 -> 0 | I11: =SUM(I12:I27) -> 259.1908333
A12: 2.1 | B12: Apito de metal, com cordão trançado | C12: 13.56 | D12: 13.82 | E12: 12.9 | F12: =MEDIAN(C12:E12) -> 13.56 | G12: 1 | H12: =G12/12 -> 0.08333333333 | I12: =H12*F12 -> 1.13
A13: 2.2 | B13: Livro de Ocorrências | C13: 16.61 | D13: 18.9 | E13: 16.98 | F13: =MEDIAN(C13:E13) -> 16.98 | G13: 0.5 | H13: =G13/12 -> 0.04166666667 | I13: 0.7075
A14: 2.3 | B14: Revólver calibre 38 com, no mínimo, seis tiros e cano de três polegadas | C14: 3799.05 | D14: 4178.79 | E14: 4400 | F14: 4178.79 | G14: 0.5 | H14: 0.04166666667 | I14: 174.11625
A15: 2.4 | B15: Jet-Loader (carregador rápido) compatível com armamento | C15: 65 | D15: 47 | E15: 37.9 | F15: 47 | G15: 0.5 | H15: 0.04166666667 | I15: 1.958333333
A16: 2.5 | B16: Porta Jet-Loader (carregador rápido) compatível com armamento | C16: 16.83 | D16: 39.9 | E16: 21 | F16: 21 | G16: 0.5 | H16: 0.04166666667 | I16: 0.875
A17: 2.6 | B17: Coldre | C17: 34.9 | D17: 40 | E17: 39.9 | F17: 39.9 | G17: 0.5 | H17: 0.04166666667 | I17: 1.6625
A18: 2.7 | B18: Porta Tonfa | C18: 11 | D18: 19.9 | E18: 24.99 | F18: 19.9 | G18: 0.5 | H18: 0.04166666667 | I18: 0.8291666667
A19: 2.8 | B19: Cinto Operacional adequado ao armamento e equipamentos fornecidos | C19: 59 | D19: 89.9 | E19: 78.99 | F19: 78.99 | G19: 0.5 | H19: 0.04166666667 | I19: 3.29125
A20: 2.9 | B20: Tonfa em fibra | C20: 38 | D20: 39.9 | E20: 44.9 | F20: 39.9 | G20: 0.5 | H20: 0.04166666667 | I20: 1.6625
A21: 2.10 | B21: Munições de calibre 38 | C21: 65 | D21: 99 | E21: 86 | F21: 86 | G21: 0.5 | H21: 0.04166666667 | I21: 3.583333333
A22: 2.11 | B22: Colete Balístico Nível II, conforme Portaria 191/2006 M.T.E | C22: 724 | D22: 714 | E22: 669.9 | F22: 714 | G22: 0.5 | H22: 0.04166666667 | I22: 29.75
A23: 2.12 | B23: Lanterna portátil | C23: 50 | D23: 102.9 | E23: 28 | F23: 50 | G23: 0.5 | H23: 0.04166666667 | I23: 2.083333333
A24: 2.13 | B24: Pilhas pequenas para lanternas (2 unidades) | C24: 12.99 | D24: 6.73 | E24: 13.99 | F24: =MEDIAN(C24:E24) -> 12.99 | G24: 0.5 | H24: 0.04166666667 | I24: 0.54125
A25: 2.14 | B25: Cofre de Segurança | C25: 189.99 | D25: 269.9 | E25: 378 | F25: 269.9 | G25: 0.5 | H25: =G25/12 -> 0.04166666667 | I25: 11.24583333
A26: 2.15 | B26: Capa de chuva | C26: 36.21 | D26: 24.9 | E26: 34.31 | F26: 34.31 | G26: 0.5 | H26: =G26/12 -> 0.04166666667 | I26: 1.429583333
A27: 2.16 | B27: Bastão de ronda + botões | C27: 583.8 | D27: 630 | E27: 499 | F27: 583.8 | G27: 0.5 | H27: =G27/12 -> 0.04166666667 | I27: 24.325
